[Event "2026 Biel Blitz Open"]
[Site "Biel, CH"]
[Date "2026.07.19"]
[Round "6"]
[White "Python, Noe"]
[Black "Huang,Hsuan-Chen"]
[Result "1-0"]
[Board "37"]
[TimeControl "180+2"]
[WhiteFideId "1337637"]
[BlackFideId "16303121"]
[WhiteElo "2010"]
[BlackElo "1833"]
[WhiteClock "0:00:05"]
[BlackClock "0:00:07"]
[Variant "Standard"]
[EndDate "2026.07.19"]
[EndTime "13:36:05"]

1. e4 {[%clk 0:03:03]}  c6 {[%clk 0:03:03]} 2. d4 {[%clk 0:03:05]}  d5 {[%clk 0:03:05]} 3. Nd2 {[%clk 0:03:06]}  dxe4 {[%clk 0:03:05]}
4. Nxe4 {[%clk 0:03:07]}  Nf6 {[%clk 0:03:06]} 5. Nxf6+ {[%clk 0:03:08]}  exf6 {[%clk 0:03:07]} 6. c3 {[%clk 0:03:09]}  Bd6 {[%clk 0:03:08]}
7. Bd3 {[%clk 0:03:10]}  Nd7 {[%clk 0:03:09]} 8. Qe2+ {[%clk 0:02:36]}  Qe7 {[%clk 0:03:10]} 9. Nf3 {[%clk 0:02:36]}  Qxe2+ {[%clk 0:03:07]}
10. Kxe2 {[%clk 0:02:36]}  Nf8 {[%clk 0:03:02]} 11. Re1 {[%clk 0:02:35]}  Be6 {[%clk 0:03:02]} 12. Kf1 {[%clk 0:02:32]}  O-O-O {[%clk 0:03:00]}
13. a4 {[%clk 0:02:26]}  Ng6 {[%clk 0:02:54]} 14. g3 {[%clk 0:02:15]}  Rhe8 {[%clk 0:02:40]} 15. Bd2 {[%clk 0:01:56]}  Bg4 {[%clk 0:02:37]}
16. Kg2 {[%clk 0:01:55]}  Ne7 {[%clk 0:02:29]} 17. a5 {[%clk 0:01:47]}  Nd5 {[%clk 0:02:18]} 18. Rxe8 {[%clk 0:01:35]}  Rxe8 {[%clk 0:02:18]}
19. Re1 {[%clk 0:01:36]}  Rxe1 {[%clk 0:02:09]} 20. Nxe1 {[%clk 0:01:35]}  h5 {[%clk 0:01:58]} 21. Be4 {[%clk 0:01:12]}  Be6 {[%clk 0:01:43]}
22. Nd3 {[%clk 0:00:45]}  Ne7 {[%clk 0:01:25]} 23. Nf4 {[%clk 0:00:22]}  Bxf4 {[%clk 0:01:16]} 24. Bxf4 {[%clk 0:00:22]}  Bd5 {[%clk 0:01:13]}
25. f3 {[%clk 0:00:16]}  Kd7 {[%clk 0:01:07]} 26. Bd3 {[%clk 0:00:16]}  g5 {[%clk 0:01:02]} 27. Bd2 {[%clk 0:00:16]}  Ke6 {[%clk 0:00:55]}
28. Kf2 {[%clk 0:00:18]}  Kd6 {[%clk 0:00:45]} 29. b4 {[%clk 0:00:13]}  Be6 {[%clk 0:00:41]} 30. f4 {[%clk 0:00:07]}  g4 {[%clk 0:00:31]}
31. Bc2 {[%clk 0:00:04]}  Bf5 {[%clk 0:00:28]} 32. Bb3 {[%clk 0:00:04]}  Be6 {[%clk 0:00:29]} 33. Bd1 {[%clk 0:00:05]}  f5 {[%clk 0:00:27]}
34. Be2 {[%clk 0:00:06]}  Nd5 {[%clk 0:00:27]} 35. c4 {[%clk 0:00:06]}  Nf6 {[%clk 0:00:28]} 36. Ke3 {[%clk 0:00:06]}  Ne4 {[%clk 0:00:28]}
37. Be1 {[%clk 0:00:07]}  b6 {[%clk 0:00:24]} 38. axb6 {[%clk 0:00:07]}  axb6 {[%clk 0:00:25]} 39. Bd3 {[%clk 0:00:08]}  Nf6 {[%clk 0:00:20]}
40. Kd2 {[%clk 0:00:05]}  Kc7 {[%clk 0:00:16]} 41. Ke3 {[%clk 0:00:04]}  Kd6 {[%clk 0:00:17]} 42. Bc3 {[%clk 0:00:04]}  Nd7 {[%clk 0:00:12]}
43. Bb2 {[%clk 0:00:04]}  Nb8 {[%clk 0:00:10]} 44. Be2 {[%clk 0:00:04]}  Kd7 {[%clk 0:00:09]} 45. Ba3 {[%clk 0:00:05]}  Na6 {[%clk 0:00:09]}
46. Bf1 {[%clk 0:00:06]}  Kc7 {[%clk 0:00:09]} 47. Kd3 {[%clk 0:00:07]}  Kd7 {[%clk 0:00:10]} 48. Bg2 {[%clk 0:00:08]}  Nc7 {[%clk 0:00:11]}
49. Bc1 {[%clk 0:00:08]}  b5 {[%clk 0:00:12]} 50. cxb5 {[%clk 0:00:05]}  Nxb5 {[%clk 0:00:13]} 51. Bb2 {[%clk 0:00:05]}  Nc7 {[%clk 0:00:14]}
52. Bf1 {[%clk 0:00:05]}  Nd5 {[%clk 0:00:14]} 53. Bc3 {[%clk 0:00:06]}  Nxc3 {[%clk 0:00:12]} 54. Kxc3 {[%clk 0:00:06]}  Bd5 {[%clk 0:00:14]}
55. Bc4 {[%clk 0:00:07]}  Kd6 {[%clk 0:00:12]} 56. Bd3 {[%clk 0:00:03]}  Be4 {[%clk 0:00:09]} 57. Bc4 {[%clk 0:00:04]}  f6 {[%clk 0:00:08]}
58. Bb3 {[%clk 0:00:04]}  Bf3 {[%clk 0:00:09]} 59. Bf7 {[%clk 0:00:05]}  Bd5 {[%clk 0:00:05]} 60. Bxd5 {[%clk 0:00:04]}  Kxd5 {[%clk 0:00:03]}
61. Kd3 {[%clk 0:00:05]}  Ke6 {[%clk 0:00:04]} 62. Kc4 {[%clk 0:00:04]}  Kd6 {[%clk 0:00:05]} 63. d5 {[%clk 0:00:04]}  cxd5+ {[%clk 0:00:06]}
64. Kd4 {[%clk 0:00:05]}  Kc6 {[%clk 0:00:04]} 65. b5+ {[%clk 0:00:06]}  Kxb5 {[%clk 0:00:05]} 66. Kxd5 {[%clk 0:00:07]} 1-0

[Event "2026 Biel Blitz Open"]
[Site "Biel, CH"]
[Date "2026.07.19"]
[Round "6"]
[White "Dietiker, Manuel"]
[Black "Chu, Wa Ching David"]
[Result "0-1"]
[Board "38"]
[TimeControl "180+2"]
[WhiteFideId "1317377"]
[BlackFideId "6013180"]
[WhiteElo "2002"]
[BlackElo "1673"]
[WhiteClock "0:00:40"]
[BlackClock "0:00:16"]
[Variant "Standard"]
[EndDate "2026.07.19"]
[EndTime "13:37:45"]

1. e4 {[%clk 0:03:01]}  c5 {[%clk 0:02:59]} 2. Nf3 {[%clk 0:03:01]}  d6 {[%clk 0:03:01]} 3. d4 {[%clk 0:03:02]}  cxd4 {[%clk 0:03:02]}
4. Nxd4 {[%clk 0:03:03]}  Nf6 {[%clk 0:03:03]} 5. Nc3 {[%clk 0:03:03]}  g6 {[%clk 0:03:05]} 6. Be3 {[%clk 0:03:02]}  Bg7 {[%clk 0:03:06]}
7. f3 {[%clk 0:03:03]}  O-O {[%clk 0:03:06]} 8. Qd2 {[%clk 0:03:04]}  Nc6 {[%clk 0:03:07]} 9. O-O-O {[%clk 0:03:04]}  d5 {[%clk 0:03:08]}
10. Kb1 {[%clk 0:03:05]}  Nxd4 {[%clk 0:03:08]} 11. e5 {[%clk 0:03:06]}  Nf5 {[%clk 0:03:09]} 12. exf6 {[%clk 0:03:04]}  exf6 {[%clk 0:03:08]}
13. Nxd5 {[%clk 0:03:04]}  Be6 {[%clk 0:02:57]} 14. Nc3 {[%clk 0:02:47]}  Qa5 {[%clk 0:02:42]} 15. a3 {[%clk 0:02:13]}  Rfd8 {[%clk 0:02:26]}
16. Qc1 {[%clk 0:02:12]}  Nxe3 {[%clk 0:02:18]} 17. Qxe3 {[%clk 0:02:13]}  f5 {[%clk 0:02:17]} 18. Rxd8+ {[%clk 0:02:11]}  Rxd8 {[%clk 0:02:17]}
19. Be2 {[%clk 0:02:11]}  Bxc3 {[%clk 0:02:00]} 20. Qxc3 {[%clk 0:02:11]}  Qxc3 {[%clk 0:01:58]} 21. bxc3 {[%clk 0:02:12]}  Rd2 {[%clk 0:01:55]}
22. Re1 {[%clk 0:02:12]}  f4 {[%clk 0:01:39]} 23. Kc1 {[%clk 0:02:12]}  Rd6 {[%clk 0:01:40]} 24. Bd3 {[%clk 0:02:06]}  Rc6 {[%clk 0:01:32]}
25. Kd2 {[%clk 0:01:56]}  Kf8 {[%clk 0:01:20]} 26. Re4 {[%clk 0:01:53]}  g5 {[%clk 0:01:20]} 27. Re5 {[%clk 0:01:51]}  f6 {[%clk 0:01:18]}
28. Rb5 {[%clk 0:01:52]}  b6 {[%clk 0:01:09]} 29. Bxh7 {[%clk 0:01:46]}  a6 {[%clk 0:01:00]} 30. Rb1 {[%clk 0:01:43]}  f5 {[%clk 0:00:57]}
31. Bg6 {[%clk 0:01:31]}  Rd6+ {[%clk 0:00:47]} 32. Ke1 {[%clk 0:01:31]}  Bd7 {[%clk 0:00:45]} 33. Rd1 {[%clk 0:01:24]}  Rxd1+ {[%clk 0:00:43]}
34. Kxd1 {[%clk 0:01:25]}  Kg7 {[%clk 0:00:43]} 35. Bh5 {[%clk 0:01:25]}  Bc6 {[%clk 0:00:36]} 36. Ke2 {[%clk 0:01:15]}  Bb5+ {[%clk 0:00:35]}
37. Kd2 {[%clk 0:01:10]}  Kf6 {[%clk 0:00:35]} 38. g3 {[%clk 0:01:08]}  fxg3 {[%clk 0:00:26]} 39. hxg3 {[%clk 0:01:09]}  Bc6 {[%clk 0:00:26]}
40. c4 {[%clk 0:01:05]}  Ke5 {[%clk 0:00:23]} 41. Ke3 {[%clk 0:01:03]}  f4+ {[%clk 0:00:23]} 42. gxf4+ {[%clk 0:01:04]}  gxf4+ {[%clk 0:00:24]}
43. Kd3 {[%clk 0:01:05]}  Bd7 {[%clk 0:00:24]} 44. c3 {[%clk 0:01:02]}  Bf5+ {[%clk 0:00:25]} 45. Ke2 {[%clk 0:01:03]}  Kd6 {[%clk 0:00:16]}
46. Bf7 {[%clk 0:01:01]}  Kc5 {[%clk 0:00:17]} 47. Kd2 {[%clk 0:01:02]}  Bb1 {[%clk 0:00:16]} 48. Kc1 {[%clk 0:00:50]}  Ba2 {[%clk 0:00:17]}
49. Kc2 {[%clk 0:00:42]}  Bxc4 {[%clk 0:00:17]} 50. Bh5 {[%clk 0:00:43]}  Be2 {[%clk 0:00:16]} 51. Kd2 {[%clk 0:00:44]}  Bb5 {[%clk 0:00:12]}
52. Bf7 {[%clk 0:00:35]}  Bc4 {[%clk 0:00:13]} 53. Be8 {[%clk 0:00:31]}  b5 {[%clk 0:00:10]} 54. Bg6 {[%clk 0:00:28]}  Kb6 {[%clk 0:00:10]}
55. Bd3 {[%clk 0:00:27]}  Ka5 {[%clk 0:00:07]} 56. Bxc4 {[%clk 0:00:22]}  bxc4 {[%clk 0:00:08]} 57. Kc2 {[%clk 0:00:23]}  Ka4 {[%clk 0:00:09]}
58. Kb2 {[%clk 0:00:25]}  Kb5 {[%clk 0:00:10]} 59. Kc2 {[%clk 0:00:25]}  Kc5 {[%clk 0:00:09]} 60. Kd2 {[%clk 0:00:24]}  Kd5 {[%clk 0:00:06]}
61. Ke2 {[%clk 0:00:25]}  Kc6 {[%clk 0:00:05]} 62. Kf2 {[%clk 0:00:21]}  Kb5 {[%clk 0:00:06]} 63. Kg2 {[%clk 0:00:22]}  Ka4 {[%clk 0:00:08]}
64. Kh3 {[%clk 0:00:23]}  Kxa3 {[%clk 0:00:08]} 65. Kg4 {[%clk 0:00:25]}  Kb3 {[%clk 0:00:09]} 66. Kxf4 {[%clk 0:00:26]}  a5 {[%clk 0:00:11]}
67. Ke4 {[%clk 0:00:27]}  a4 {[%clk 0:00:12]} 68. f4 {[%clk 0:00:29]}  a3 {[%clk 0:00:13]} 69. f5 {[%clk 0:00:30]}  a2 {[%clk 0:00:14]}
70. f6 {[%clk 0:00:32]}  a1=Q {[%clk 0:00:13]} 71. f7 {[%clk 0:00:34]}  Qf1 {[%clk 0:00:13]} 72. Kd4 {[%clk 0:00:35]}  Qf4+ {[%clk 0:00:13]}
73. Kc5 {[%clk 0:00:33]}  Qxf7 {[%clk 0:00:14]} 74. Kd4 {[%clk 0:00:32]}  Qd7+ {[%clk 0:00:14]} 75. Ke4 {[%clk 0:00:39]}  Kxc3 {[%clk 0:00:15]}
76. Ke5 {[%clk 0:00:40]}  Qd4+ {[%clk 0:00:16]} 0-1

[Event "2026 Biel Blitz Open"]
[Site "Biel, CH"]
[Date "2026.07.19"]
[Round "6"]
[White "Zumbrunn, Simon"]
[Black "Hirzel, Robin"]
[Result "0-1"]
[Board "39"]
[TimeControl "180+2"]
[WhiteFideId "1364146"]
[BlackFideId "1342320"]
[WhiteElo "1802"]
[BlackElo "2022"]
[WhiteClock "0:00:06"]
[BlackClock "0:01:52"]
[Variant "Standard"]
[EndDate "2026.07.19"]
[EndTime "13:28:44"]

1. e4 {[%clk 0:03:03]}  e6 {[%clk 0:03:04]} 2. d4 {[%clk 0:03:01]}  d5 {[%clk 0:03:05]} 3. Nc3 {[%clk 0:03:05]}  Nf6 {[%clk 0:03:06]}
4. e5 {[%clk 0:03:07]}  Nfd7 {[%clk 0:03:08]} 5. f4 {[%clk 0:03:08]}  c5 {[%clk 0:03:09]} 6. Nf3 {[%clk 0:03:10]}  Nc6 {[%clk 0:03:10]}
7. Be3 {[%clk 0:03:10]}  cxd4 {[%clk 0:03:11]} 8. Nxd4 {[%clk 0:03:09]}  Bc5 {[%clk 0:03:13]} 9. Qd2 {[%clk 0:02:44]}  a6 {[%clk 0:03:13]}
10. a3 {[%clk 0:02:42]}  O-O {[%clk 0:03:13]} 11. b4 {[%clk 0:02:40]}  Bxd4 {[%clk 0:03:13]} 12. Bxd4 {[%clk 0:02:41]}  Nxd4 {[%clk 0:03:15]}
13. Qxd4 {[%clk 0:02:41]}  Qb6 {[%clk 0:03:16]} 14. Qxb6 {[%clk 0:02:28]}  Nxb6 {[%clk 0:03:18]} 15. a4 {[%clk 0:02:29]}  Bd7 {[%clk 0:03:09]}
16. a5 {[%clk 0:02:30]}  Rac8 {[%clk 0:03:08]} 17. axb6 {[%clk 0:02:12]}  Rxc3 {[%clk 0:03:07]} 18. Kd2 {[%clk 0:02:09]}  Rfc8 {[%clk 0:03:08]}
19. Bd3 {[%clk 0:02:09]}  g6 {[%clk 0:03:05]} 20. g3 {[%clk 0:02:01]}  Bb5 {[%clk 0:03:04]} 21. Rhc1 {[%clk 0:01:54]}  Bd7 {[%clk 0:02:52]}
22. Bxa6 {[%clk 0:01:20]}  Rf3 {[%clk 0:02:14]} 23. Be2 {[%clk 0:01:22]}  Rf2 {[%clk 0:02:12]} 24. h3 {[%clk 0:00:57]}  Bb5 {[%clk 0:02:13]}
25. Re1 {[%clk 0:00:59]}  Bxe2 {[%clk 0:01:54]} 26. Rxe2 {[%clk 0:01:00]}  Rxe2+ {[%clk 0:01:55]} 27. Kxe2 {[%clk 0:01:01]}  Rxc2+ {[%clk 0:01:57]}
28. Kd3 {[%clk 0:01:02]}  Rc6 {[%clk 0:01:58]} 29. Ra8+ {[%clk 0:00:56]}  Kg7 {[%clk 0:01:57]} 30. Kd4 {[%clk 0:00:51]}  Rxb6 {[%clk 0:01:59]}
31. Kc5 {[%clk 0:00:52]}  Rc6+ {[%clk 0:02:00]} 32. Kb5 {[%clk 0:00:53]}  Rc3 {[%clk 0:01:59]} 33. Ra7 {[%clk 0:00:51]}  Rxg3 {[%clk 0:02:00]}
34. Rxb7 {[%clk 0:00:52]}  Rxh3 {[%clk 0:02:01]} 35. Kc5 {[%clk 0:00:49]}  Rb3 {[%clk 0:02:00]} 36. b5 {[%clk 0:00:49]}  h5 {[%clk 0:02:01]}
37. Ra7 {[%clk 0:00:49]}  Rc3+ {[%clk 0:01:57]} 38. Kd4 {[%clk 0:00:37]}  Rc4+ {[%clk 0:01:57]} 39. Ke3 {[%clk 0:00:38]}  Rb4 {[%clk 0:01:59]}
40. Ra5 {[%clk 0:00:32]}  h4 {[%clk 0:01:58]} 41. Kf3 {[%clk 0:00:32]}  d4 {[%clk 0:01:55]} 42. Kg4 {[%clk 0:00:30]}  d3 {[%clk 0:01:55]}
43. Ra2 {[%clk 0:00:29]}  Rxb5 {[%clk 0:01:54]} 44. Kxh4 {[%clk 0:00:29]}  Rd5 {[%clk 0:01:50]} 45. Rd2 {[%clk 0:00:30]}  Kf8 {[%clk 0:01:51]}
46. Kg4 {[%clk 0:00:31]}  Ke7 {[%clk 0:01:51]} 47. Kf3 {[%clk 0:00:32]}  Kd7 {[%clk 0:01:53]} 48. Ke4 {[%clk 0:00:33]}  Kc6 {[%clk 0:01:52]}
49. Rd1 {[%clk 0:00:22]}  d2 {[%clk 0:01:50]} 50. Ke3 {[%clk 0:00:20]}  Kc5 {[%clk 0:01:51]} 51. Ke4 {[%clk 0:00:05]}  Kc4 {[%clk 0:01:50]}
52. Ke3 {[%clk 0:00:07]}  Kc3 {[%clk 0:01:51]} 53. Ke2 {[%clk 0:00:06]}  Kc2 {[%clk 0:01:52]} 0-1

[Event "2026 Biel Blitz Open"]
[Site "Biel, CH"]
[Date "2026.07.19"]
[Round "6"]
[White "Haugner, Jan"]
[Black "Aryan Goyal"]
[Result "1-0"]
[Board "42"]
[TimeControl "180+2"]
[WhiteFideId "24655244"]
[BlackFideId "366108825"]
[WhiteElo "1976"]
[BlackElo "1748"]
[WhiteClock "0:00:08"]
[BlackClock "0:00:12"]
[Variant "Standard"]
[EndDate "2026.07.19"]
[EndTime "13:29:46"]

1. e4 {[%clk 0:03:03]}  e5 {[%clk 0:03:04]} 2. Nf3 {[%clk 0:03:04]}  Nc6 {[%clk 0:03:05]} 3. Nc3 {[%clk 0:03:06]}  Nf6 {[%clk 0:03:06]}
4. Bb5 {[%clk 0:03:07]}  Bb4 {[%clk 0:03:06]} 5. O-O {[%clk 0:03:07]}  O-O {[%clk 0:03:08]} 6. Bxc6 {[%clk 0:03:06]}  dxc6 {[%clk 0:03:09]}
7. d3 {[%clk 0:03:07]}  Bg4 {[%clk 0:03:08]} 8. h3 {[%clk 0:02:47]}  Bxf3 {[%clk 0:02:42]} 9. Qxf3 {[%clk 0:02:47]}  Qd7 {[%clk 0:02:40]}
10. Ne2 {[%clk 0:02:43]}  h6 {[%clk 0:02:40]} 11. Bxh6 {[%clk 0:02:33]}  Qe6 {[%clk 0:02:36]} 12. Bg5 {[%clk 0:02:18]}  Rad8 {[%clk 0:02:33]}
13. Bxf6 {[%clk 0:02:14]}  Qxf6 {[%clk 0:02:34]} 14. Qxf6 {[%clk 0:02:13]}  gxf6 {[%clk 0:02:35]} 15. Ng3 {[%clk 0:02:13]}  c5 {[%clk 0:02:28]}
16. b3 {[%clk 0:02:13]}  Bc3 {[%clk 0:02:26]} 17. Rad1 {[%clk 0:02:09]}  b5 {[%clk 0:02:27]} 18. Nf5 {[%clk 0:01:56]}  Rd7 {[%clk 0:02:29]}
19. f4 {[%clk 0:01:51]}  Rfd8 {[%clk 0:02:26]} 20. fxe5 {[%clk 0:01:43]}  fxe5 {[%clk 0:02:27]} 21. Kh2 {[%clk 0:01:34]}  c4 {[%clk 0:02:24]}
22. Rf3 {[%clk 0:01:34]}  cxd3 {[%clk 0:02:12]} 23. Rfxd3 {[%clk 0:01:33]}  Rxd3 {[%clk 0:02:09]} 24. Rxd3 {[%clk 0:01:34]}  Rxd3 {[%clk 0:02:10]}
25. cxd3 {[%clk 0:01:35]}  Kf8 {[%clk 0:02:07]} 26. h4 {[%clk 0:01:35]}  f6 {[%clk 0:02:08]} 27. h5 {[%clk 0:01:34]}  Kf7 {[%clk 0:02:07]}
28. Kg3 {[%clk 0:01:30]}  Bd2 {[%clk 0:02:07]} 29. Kg4 {[%clk 0:01:26]}  a5 {[%clk 0:02:07]} 30. d4 {[%clk 0:01:01]}  Bc1 {[%clk 0:01:37]}
31. dxe5 {[%clk 0:00:52]}  fxe5 {[%clk 0:01:37]} 32. Kh4 {[%clk 0:00:48]}  Kf6 {[%clk 0:01:35]} 33. g4 {[%clk 0:00:46]}  Bd2 {[%clk 0:01:13]}
34. Kh3 {[%clk 0:00:11]}  Bb4 {[%clk 0:00:49]} 35. h6 {[%clk 0:00:12]}  Kg6 {[%clk 0:00:49]} 36. Kh4 {[%clk 0:00:12]}  Bf8 {[%clk 0:00:34]}
37. g5 {[%clk 0:00:13]}  c5 {[%clk 0:00:35]} 38. Kg4 {[%clk 0:00:14]}  c4 {[%clk 0:00:33]} 39. Nh4+ {[%clk 0:00:14]}  Kh7 {[%clk 0:00:32]}
40. bxc4 {[%clk 0:00:09]}  bxc4 {[%clk 0:00:34]} 41. Nf3 {[%clk 0:00:09]}  Bd6 {[%clk 0:00:25]} 42. Kh5 {[%clk 0:00:09]}  c3 {[%clk 0:00:26]}
43. Ne1 {[%clk 0:00:10]}  c2 {[%clk 0:00:21]} 44. Nxc2 {[%clk 0:00:11]}  Be7 {[%clk 0:00:15]} 45. g6+ {[%clk 0:00:13]}  Kg8 {[%clk 0:00:17]}
46. Ne3 {[%clk 0:00:13]}  Bc5 {[%clk 0:00:17]} 47. Nf5 {[%clk 0:00:14]}  Kh8 {[%clk 0:00:18]} 48. Kg5 {[%clk 0:00:11]}  a4 {[%clk 0:00:18]}
49. Kf6 {[%clk 0:00:12]}  Kg8 {[%clk 0:00:17]} 50. h7+ {[%clk 0:00:11]}  Kh8 {[%clk 0:00:18]} 51. Nh6 {[%clk 0:00:09]}  Be7+ {[%clk 0:00:10]}
52. Kxe7 {[%clk 0:00:09]}  a3 {[%clk 0:00:11]} 53. g7+ {[%clk 0:00:08]}  Kxg7 {[%clk 0:00:11]} 54. Nf7 {[%clk 0:00:09]}  Kxh7 {[%clk 0:00:11]}
55. Nxe5 {[%clk 0:00:07]}  Kg7 {[%clk 0:00:11]} 56. Kd6 {[%clk 0:00:07]}  Kf6 {[%clk 0:00:12]} 57. Nd7 {[%clk 0:00:08]} 1-0

[Event "2026 Biel Blitz Open"]
[Site "Biel, CH"]
[Date "2026.07.19"]
[Round "6"]
[White "Jud, Marc"]
[Black "Wilhelm, Marco"]
[Result "1-0"]
[Board "44"]
[TimeControl "180+2"]
[WhiteFideId "1309099"]
[BlackFideId "1347039"]
[WhiteElo "1946"]
[BlackElo "1684"]
[WhiteClock "0:00:57"]
[BlackClock "0:00:15"]
[Variant "Standard"]
[EndDate "2026.07.19"]
[EndTime "13:37:03"]

1. d4 {[%clk 0:03:03]}  e6 {[%clk 0:03:01]} 2. Nf3 {[%clk 0:03:04]}  d5 {[%clk 0:03:02]} 3. e3 {[%clk 0:03:04]}  c6 {[%clk 0:03:04]}
4. c4 {[%clk 0:03:05]}  f5 {[%clk 0:03:05]} 5. cxd5 {[%clk 0:03:02]}  exd5 {[%clk 0:03:06]} 6. Bd3 {[%clk 0:03:01]}  Nf6 {[%clk 0:03:06]}
7. Ne5 {[%clk 0:02:56]}  Bd6 {[%clk 0:03:04]} 8. O-O {[%clk 0:02:50]}  Nbd7 {[%clk 0:03:01]} 9. f4 {[%clk 0:02:47]}  O-O {[%clk 0:02:57]}
10. b3 {[%clk 0:02:35]}  Ne4 {[%clk 0:02:57]} 11. Bxe4 {[%clk 0:02:35]}  fxe4 {[%clk 0:02:57]} 12. Bb2 {[%clk 0:02:35]}  Nf6 {[%clk 0:02:53]}
13. h3 {[%clk 0:02:33]}  Be6 {[%clk 0:02:47]} 14. Nd2 {[%clk 0:02:29]}  Bxe5 {[%clk 0:02:35]} 15. dxe5 {[%clk 0:02:24]}  Nd7 {[%clk 0:02:34]}
16. Bd4 {[%clk 0:02:15]}  Qe7 {[%clk 0:02:28]} 17. Qe1 {[%clk 0:02:05]}  Rf5 {[%clk 0:02:21]} 18. g4 {[%clk 0:02:03]}  Rff8 {[%clk 0:02:17]}
19. f5 {[%clk 0:02:04]}  Bxf5 {[%clk 0:01:59]} 20. gxf5 {[%clk 0:02:02]}  Nxe5 {[%clk 0:01:59]} 21. Qg3 {[%clk 0:01:55]}  Nd3 {[%clk 0:01:49]}
22. f6 {[%clk 0:01:52]}  Qd7 {[%clk 0:01:29]} 23. fxg7 {[%clk 0:01:32]}  Rxf1+ {[%clk 0:01:06]} 24. Rxf1 {[%clk 0:01:33]}  c5 {[%clk 0:00:58]}
25. Ba1 {[%clk 0:01:26]}  d4 {[%clk 0:00:53]} 26. Nxe4 {[%clk 0:01:25]}  Qxg7 {[%clk 0:00:36]} 27. Qxg7+ {[%clk 0:01:18]}  Kxg7 {[%clk 0:00:36]}
28. exd4 {[%clk 0:01:18]}  cxd4 {[%clk 0:00:35]} 29. Bxd4+ {[%clk 0:01:18]}  Kg6 {[%clk 0:00:33]} 30. Rf6+ {[%clk 0:01:15]}  Kh5 {[%clk 0:00:31]}
31. Be3 {[%clk 0:01:02]}  Kh4 {[%clk 0:00:23]} 32. Kh2 {[%clk 0:01:01]}  h5 {[%clk 0:00:15]} 33. Bg5# {[%clk 0:00:57]} 1-0

[Event "2026 Biel Blitz Open"]
[Site "Biel, CH"]
[Date "2026.07.19"]
[Round "6"]
[White "Pinelli, Gian"]
[Black "Dai, Wenzhi"]
[Result "1-0"]
[Board "45"]
[TimeControl "180+2"]
[WhiteFideId "1348710"]
[BlackFideId "8608369"]
[WhiteElo "1751"]
[BlackElo "1943"]
[WhiteClock "0:01:08"]
[BlackClock "0:03:02"]
[Variant "Standard"]
[EndDate "2026.07.19"]
[EndTime "13:28:05"]

1. d4 {[%clk 0:03:00]}  Nf6 {[%clk 0:03:03]} 2. c4 {[%clk 0:03:00]}  e6 {[%clk 0:03:04]} 3. Nc3 {[%clk 0:03:01]}  Bb4 {[%clk 0:03:04]}
4. Qc2 {[%clk 0:03:02]}  d5 {[%clk 0:03:04]} 5. a3 {[%clk 0:03:01]}  Bxc3+ {[%clk 0:03:04]} 6. Qxc3 {[%clk 0:03:01]}  h6 {[%clk 0:03:00]}
7. Nf3 {[%clk 0:03:01]}  O-O {[%clk 0:03:01]} 8. Bf4 {[%clk 0:02:59]}  c6 {[%clk 0:03:01]} 9. e3 {[%clk 0:02:57]}  Nbd7 {[%clk 0:03:00]}
10. Qc2 {[%clk 0:02:45]}  Re8 {[%clk 0:02:59]} 11. Be2 {[%clk 0:02:43]}  dxc4 {[%clk 0:02:56]} 12. Bxc4 {[%clk 0:02:43]}  b5 {[%clk 0:02:55]}
13. Be2 {[%clk 0:02:44]}  Bb7 {[%clk 0:02:56]} 14. O-O {[%clk 0:02:42]}  Rc8 {[%clk 0:02:56]} 15. Rac1 {[%clk 0:02:42]}  a6 {[%clk 0:02:52]}
16. Ne5 {[%clk 0:02:35]}  c5 {[%clk 0:02:48]} 17. Qd1 {[%clk 0:02:12]}  Qb6 {[%clk 0:02:32]} 18. dxc5 {[%clk 0:02:00]}  Nxc5 {[%clk 0:02:32]}
19. Bf3 {[%clk 0:01:54]}  Red8 {[%clk 0:02:31]} 20. Qe2 {[%clk 0:01:54]}  Bxf3 {[%clk 0:02:17]} 21. Nxf3 {[%clk 0:01:55]}  Nce4 {[%clk 0:02:14]}
22. Rfd1 {[%clk 0:01:51]}  a5 {[%clk 0:02:13]} 23. Rxd8+ {[%clk 0:01:49]}  Rxd8 {[%clk 0:02:14]} 24. Bc7 {[%clk 0:01:47]}  Rc8 {[%clk 0:01:10]}
25. Bxb6 {[%clk 0:01:47]}  Rxc1+ {[%clk 0:01:11]} 26. Ne1 {[%clk 0:01:48]}  b4 {[%clk 0:01:12]} 27. Bxa5 {[%clk 0:01:45]}  b3 {[%clk 0:01:12]}
28. f3 {[%clk 0:01:42]}  Nc5 {[%clk 0:01:11]} 29. Kf2 {[%clk 0:01:36]}  Nd5 {[%clk 0:01:09]} 30. e4 {[%clk 0:01:34]}  Nf4 {[%clk 0:01:09]}
31. Qe3 {[%clk 0:01:33]}  g5 {[%clk 0:00:07]} 32. Bd2 {[%clk 0:01:23]}  Rc2 {[%clk 0:00:05]} 33. Nxc2 {[%clk 0:01:19]}  bxc2 {[%clk 0:00:05]}
34. Bc1 {[%clk 0:01:10]}  Nfd3+ {[%clk 0:00:04]} 35. Ke2 {[%clk 0:01:08]}  Nb3 {[%clk 0:00:00]} 36. Kxd3 {[%clk 0:01:08]} 1-0

[Event "2026 Biel Blitz Open"]
[Site "Biel, CH"]
[Date "2026.07.19"]
[Round "6"]
[White "Jehnichen, Kai"]
[Black "Boner, Timm"]
[Result "1-0"]
[Board "47"]
[TimeControl "180+2"]
[WhiteFideId "24684333"]
[BlackFideId "1330039"]
[WhiteElo "1952"]
[BlackElo "1705"]
[WhiteClock "0:02:34"]
[BlackClock "0:02:15"]
[Variant "Standard"]
[EndDate "2026.07.19"]
[EndTime "13:24:04"]

1. e4 {[%clk 0:03:03]}  e5 {[%clk 0:03:01]} 2. d4 {[%clk 0:02:58]}  exd4 {[%clk 0:03:02]} 3. Qxd4 {[%clk 0:02:58]}  Nf6 {[%clk 0:03:02]}
4. a3 {[%clk 0:02:52]}  Nc6 {[%clk 0:03:02]} 5. Qe3 {[%clk 0:02:52]}  Qe7 {[%clk 0:03:02]} 6. Nc3 {[%clk 0:02:53]}  Qe5 {[%clk 0:02:59]}
7. Nf3 {[%clk 0:02:52]}  Qa5 {[%clk 0:02:47]} 8. Bd2 {[%clk 0:02:52]}  Bc5 {[%clk 0:02:44]} 9. Qe2 {[%clk 0:02:36]}  Nd4 {[%clk 0:02:42]}
10. Nxd4 {[%clk 0:02:36]}  Bxd4 {[%clk 0:02:41]} 11. Nb5 {[%clk 0:02:33]}  Qb6 {[%clk 0:02:33]} 12. c3 {[%clk 0:02:30]}  Bc5 {[%clk 0:02:28]}
13. b4 {[%clk 0:02:31]}  Bd6 {[%clk 0:02:25]} 14. e5 {[%clk 0:02:32]}  c6 {[%clk 0:02:22]} 15. Nxd6+ {[%clk 0:02:33]}  Kd8 {[%clk 0:02:20]}
16. exf6 {[%clk 0:02:33]}  gxf6 {[%clk 0:02:15]} 17. Nxf7+ {[%clk 0:02:34]} 1-0